{"text_format":"1","workbook":"xlsx","n_sheets":4,"sheets":["お読みください","入力画面","出力画面","保存画面"],"not_rendered":{"charts":0,"images":0,"macros":1,"external_links":0,"defined_names":0,"comments":0,"pivot_tables":0},"unopened":[],"bounds":{"document_bytes":16777216,"sheet_cells":100000,"rows_first":2000,"rows_last":500,"rows_between":2000,"halvings":0,"cell_chars":16384,"cell_head_chars":4096},"cells_cut":0,"cells_raw":0,"read":"whole","date_system":"1900"}

{"sheet":"お読みください","index":0,"n_rows":27,"n_cols":2,"rows_kept":27,"cut":false,"hidden":false,"merged":[]}
["このファイルは、様式1報告を岡山県病院薬剤師会を通して日病薬に報告するためのものです。"]
["【入力画面】について"]
["項目を記載してください。"]
[null,"のセルは、フリーワードで入力できます。改行する際は、windowsの場合は「Alt+Enter」をお使いください。"]
[null,"のセルは、入力制限がかかっています。必要なものを選択してください。"]
[null,"のセルは、チェックボックスになっています。該当の際は、クリックしてください。"]
["赤文字の項目は入力必須の項目です。未記載な項目があればプレアボイド報告が行われません。注意してください。"]
["L列は、入力制限のためのキーワードです。この列は削除したり改変したりしないでください。"]
["入力が終わったら、「登録」ボタンを押ししてください。"]
["「登録」ボタンを押すと【保存画面】に登録されたのち、入力した項目が消えます。施設名や報告者氏名などはそのままです。報告者が変わるときは、修正してください。"]
["必須項目に関するエラーメッセージがでますので、問題がなければ「OK」を選んでください。"]
[]
["【出力画面】について"]
["エクセル処理用のシートです。何も作業はしないでください。"]
[]
["【保存画面】について"]
["「登録」されたプレアボイドが保存されます。"]
["岡山県病院薬剤師会には、このシート【保存画面】を報告することになります。"]
["入力画面で何も入力されていない場合には、「0」として表示されます。"]
["もし削除する場合は、このシート【保存画面】の行を直接選択して削除してください。"]
[]
["その他"]
["必要な箇所は、シートの保護がされています。"]
[]
["ご不明な点等ありましたら、"]
["oka-pre@okayama-u.ac.jp"]
["までご連絡ください"]

{"sheet":"入力画面","index":1,"n_rows":68,"n_cols":12,"rows_kept":68,"cut":false,"hidden":false,"merged":[[2,8,2,9],[3,8,3,9],[11,8,11,9],[16,8,16,9],[17,8,17,9],[45,1,45,2],[46,1,46,2],[44,5,44,6],[16,2,16,7],[17,2,17,7],[45,5,45,6],[21,3,21,4],[22,3,22,4],[21,1,21,2],[21,5,21,9],[22,5,22,9],[34,1,34,2],[34,6,34,7],[0,1,0,9],[67,4,67,9],[64,2,64,9],[66,2,66,3],[66,5,66,6],[65,5,65,6],[65,8,65,9],[66,8,66,9],[50,1,51,9],[53,1,54,9],[56,1,57,9],[59,1,60,9],[62,1,63,9],[65,2,65,3],[35,1,35,2],[35,6,35,7]]}
[null,"プレアボイド報告書（薬物治療効果の向上）　様式3（入力用）Ver1.0　"]
[]
[null,"＜患者背景＞",null,"性別",null,"年齢(年)","年齢(月)",null,"患者",null,null,"男"]
[null,null,null,null,null,null,null,null,null,null,null,"女"]
[null,null,null,null,null,"↑歳代","↑１歳未満の場合"]
[null,null,null,null,null,null,null,null,null,null,null,"入院患者"]
[null,"＜関与した薬剤師の担当(介入時)＞",null,null,null,null,null,null,null,null,null,"外来患者"]
[null,"下記の①、②、③、④のいずれか１つを選んでください。該当しない場合には、「その他(中央業務)」を選択し、具体的に記入してください。"]
[null,"複数の業務を担当されていても、介入時にどの業務を行っていたかでご判断ください。",null,null,null,null,null,null,null,null,null,"薬剤管理指導業務"]
[null,"【分　類】",null,null,null,null,null,null,null,null,null,"病棟薬剤業務"]
[null,"①病棟業務",null,"③医療チーム",null,null,"④中央業務",null,"該当する分類",null,null,"医師の診察前"]
[null,"　薬剤管理指導業務",null,"　PCT（緩和ケア）",null,null,"　内服調剤",null,null,null,null,"医師の診察後"]
[null,"　病棟薬剤業務",null,"　ICT（感染対策）",null,null,"　注射調剤",null,null,null,null,"PCT（緩和ケア）"]
[null,"②薬剤師外来",null,"　NST（栄養サポート）",null,null,"　無菌製剤",null,null,null,null,"ICT（感染対策）"]
[null,"　医師の診察前",null,"　褥瘡対策",null,null,"　DI（医薬品情報管理）",null,null,null,null,"NST（栄養サポート）"]
[null,"　医師の診察後",null,"　その他（医療チーム）",null,null,"　その他（中央業務）",null,null,null,null,"褥瘡対策"]
[null,null,"③医療チーム　の「その他(医療チーム）」を選んだ場合の内容",null,null,null,null,null,null,null,null,"その他（医療チーム）"]
[null,null,"④中央業務　の「その他(中央業務）」を選んだ場合の内容",null,null,null,null,null,null,null,null,"内服調剤"]
[null,null,null,null,null,null,null,null,null,null,null,"注射調剤"]
[null,"＜薬学的介入の内容＞",null,null,null,null,null,null,null,null,null,"無菌製剤"]
[null,"項目",null,null,null,null,null,null,null,null,null,"DI（医薬品情報管理）"]
[null,null,null,"疾患の治療の場合、疾患名",null,null,null,null,null,null,null,"その他（中央業務）"]
[null,null,null,"その他の場合、内容"]
[null,"契機(複数回答可）",null,null,null,null,"内容(複数回答可）",null,null,null,null,"疾患の治療"]
[null,null,"患者・家族の訴え、相談",null,null,null,null,"薬剤増量",null,null,null,"疼痛管理"]
[null,null,"医師からの相談、情報提供",null,null,null,null,"薬剤減量",null,null,null,"栄養管理"]
[null,null,"看護師からの相談、情報提供",null,null,null,null,"薬剤追加",null,null,null,"感染管理"]
[null,null,"他の薬剤師からの相談、情報提供",null,null,null,null,"薬剤中止",null,null,null,"周術期管理"]
[null,null,"フィジカルアセスメント",null,null,null,null,"薬剤変更",null,null,null,"該当しない"]
[null,null,"検査値、バイタルサイン",null,null,null,null,"用法変更",null,null,null,"その他"]
[null,null,"薬物血中濃度解析（TDM)",null,null,null,null,"投与法変更"]
[null,null,"処方箋、注射箋、薬歴",null,null,null,null,"剤形変更",null,null,null,"✓"]
[null,null,"該当しない",null,null,null,null,"該当しない"]
[null,null,"その他",null,null,null,null,"その他"]
[null,"その他の内容",null,null,null,null,"その他の内容",null,null,null,null,"改善"]
[null,null,null,null,null,null,null,null,null,null,null,"悪化"]
[null,null,null,null,null,null,null,null,null,null,null,"不変"]
[null,"情報源(複数回答可）",null,null,null,"指標の評価(複数回答可）",null,null,null,null,null,"評価不能"]
[null,null,"添付文書",null,null,null,"検査値"]
[null,null,"インタビューフォーム",null,null,null,"バイタルサイン"]
[null,null,"ガイドライン",null,null,null,"評価スケール（NCI-CTCAE、NRS、FRS、VAS等）"]
[null,null,"文献",null,null,null,"患者・家族からの訴え"]
[null,null,"院内規定（レジメン、マニュアル）",null,null,null,"該当しない"]
[null,null,"該当しない",null,null,null,"その他",null,"結果"]
[null,null,"その他",null,null,"その他の内容"]
[null,"その他の内容"]
[]
[]
[null,"＜内容の詳細＞　　該当する内容がないばあいには「なし」と入力してください"]
[null,"契機　※報告のきっかけ(患者症状等）"]
[]
[]
[null,"介入・提案内容　※箇条書きで簡潔に。　　※改行は「Alt＋Enter」"]
[]
[]
[null,"介入の根拠　※介入に至るまでの評価・考え方を明確に(活用した情報源も記載)"]
[]
[]
[null,"転帰・結果　※提案に対するリスク(不利益）も併せて記載"]
[]
[]
[null,"薬剤師関与の具体的効果（アウトカム）"]
[]
[]
[null,"備考追加など"]
[null,"報告者名",null,null,"電話番号",null,null,"email"]
[null,"報告施設名",null,null,"fax番号",null,null,"報告日",{"$f":"TODAY()","v":"2018-01-31"}]
[null,"都道府県名",null,"住所"]

{"sheet":"出力画面","index":2,"n_rows":2,"n_cols":63,"rows_kept":2,"cut":false,"hidden":false,"merged":[]}
["施設名","都道府県","住所","電話番号","FAX番号","氏名","e-mail","初回登録日","最終更新日","年齢：年","年齢：月","性別","外来／入院","関与した薬剤師の担当（介入時）","関与した薬剤師の担当（介入時）：医療チーム：その他（内容）","関与した薬剤師の担当（介入時）：中央業務：その他（内容）","薬学的介入の内容：項目","薬学的介入の内容：項目：疾患名","薬学的介入の内容：項目：その他（内容）","薬学的介入の内容：契機：患者・家族の訴え、相談","薬学的介入の内容：契機：医師からの相談、情報提供","薬学的介入の内容：契機：看護師からの相談、情報提供","薬学的介入の内容：契機：他の薬剤師からの相談、情報提供","薬学的介入の内容：契機：フィジカルアセスメント","薬学的介入の内容：契機：検査値、バイタルサイン","薬学的介入の内容：契機：薬物血中濃度解析（TDM）","薬学的介入の内容：契機：処方箋、注射箋、薬歴","薬学的介入の内容：契機：該当しない","薬学的介入の内容：契機：その他","薬学的介入の内容：契機：その他（内容）","薬学的介入の内容：内容：薬剤増量","薬学的介入の内容：内容：薬剤減量","薬学的介入の内容：内容：薬剤追加","薬学的介入の内容：内容：薬剤中止","薬学的介入の内容：内容：薬剤変更","薬学的介入の内容：内容：用法変更","薬学的介入の内容：内容：投与法変更","薬学的介入の内容：内容：剤型変更","薬学的介入の内容：内容：該当しない","薬学的介入の内容：内容：その他","薬学的介入の内容：内容：その他（内容）","薬学的介入の内容：情報源：添付文書","薬学的介入の内容：情報源：インタビューフォーム","薬学的介入の内容：情報源：ガイドライン","薬学的介入の内容：情報源：文献","薬学的介入の内容：情報源：院内規定（レジメン、マニュアル）","薬学的介入の内容：情報源：該当しない","薬学的介入の内容：情報源：その他","薬学的介入の内容：情報源：その他（内容）","薬学的介入の内容：評価の指標：検査値","薬学的介入の内容：評価の指標：バイタルサイン","薬学的介入の内容：評価の指標：評価スケール（NCI-CTCAE、NRS、FRS、VAS等）","薬学的介入の内容：評価の指標：患者・家族からの訴え","薬学的介入の内容：評価の指標：該当しない","薬学的介入の内容：評価の指標：その他","薬学的介入の内容：評価の指標：その他（内容）","薬学的介入の内容：評価","内容の詳細：契機","内容の詳細：介入・提案内容","内容の詳細：介入の根拠","内容の詳細：転機、結果","内容の詳細：薬剤師関与による具体的効果（アウト力ム）","備考・追加など"]
[{"$f":"入力画面!C67","v":0},{"$f":"入力画面!C68","v":0},{"$f":"入力画面!E68","v":0},{"$f":"入力画面!F66","v":0},{"$f":"入力画面!F67","v":0},{"$f":"入力画面!C66","v":0},{"$f":"入力画面!I66","v":0},{"$f":"入力画面!I67","v":"2018-01-31"},{"$f":"入力画面!I67","v":"2018-01-31"},{"$f":"入力画面!F4","v":0},{"$f":"入力画面!G4","v":0},{"$f":"入力画面!D4","v":0},{"$f":"入力画面!I4","v":0},{"$f":"入力画面!I12","v":0},{"$f":"入力画面!I17","v":0},{"$f":"入力画面!I18","v":0},{"$f":"入力画面!B22","v":0},{"$f":"入力画面!F22","v":0},{"$f":"入力画面!F23","v":0},{"$f":"IF(入力画面!B25=TRUE,1,\"\")","v":""},{"$f":"IF(入力画面!B26=TRUE,1,\"\")","v":""},{"$f":"IF(入力画面!B27=TRUE,1,\"\")","v":""},{"$f":"IF(入力画面!B28=TRUE,1,\"\")","v":""},{"$f":"IF(入力画面!B29=TRUE,1,\"\")","v":""},{"$f":"IF(入力画面!B30=TRUE,1,\"\")","v":""},{"$f":"IF(入力画面!B31=TRUE,1,\"\")","v":""},{"$f":"IF(入力画面!B32=TRUE,1,\"\")","v":""},{"$f":"IF(入力画面!B33=TRUE,1,\"\")","v":""},{"$f":"IF(入力画面!B34=TRUE,1,\"\")","v":""},{"$f":"入力画面!B36","v":0},{"$f":"IF(入力画面!G25=TRUE,1,\"\")","v":""},{"$f":"IF(入力画面!G26=TRUE,1,\"\")","v":""},{"$f":"IF(入力画面!G27=TRUE,1,\"\")","v":""},{"$f":"IF(入力画面!G28=TRUE,1,\"\")","v":""},{"$f":"IF(入力画面!G29=TRUE,1,\"\")","v":""},{"$f":"IF(入力画面!G30=TRUE,1,\"\")","v":""},{"$f":"IF(入力画面!G31=TRUE,1,\"\")","v":""},{"$f":"IF(入力画面!G32=TRUE,1,\"\")","v":""},{"$f":"IF(入力画面!G33=TRUE,1,\"\")","v":""},{"$f":"IF(入力画面!G34=TRUE,1,\"\")","v":""},{"$f":"入力画面!G36","v":0},{"$f":"IF(入力画面!B39=TRUE,1,\"\")","v":""},{"$f":"IF(入力画面!B40=TRUE,1,\"\")","v":""},{"$f":"IF(入力画面!B41=TRUE,1,\"\")","v":""},{"$f":"IF(入力画面!B42=TRUE,1,\"\")","v":""},{"$f":"IF(入力画面!B43=TRUE,1,\"\")","v":""},{"$f":"IF(入力画面!B44=TRUE,1,\"\")","v":""},{"$f":"IF(入力画面!B45=TRUE,1,\"\")","v":""},{"$f":"入力画面!B47","v":0},{"$f":"IF(入力画面!F39=TRUE,1,\"\")","v":""},{"$f":"IF(入力画面!F40=TRUE,1,\"\")","v":""},{"$f":"IF(入力画面!F41=TRUE,1,\"\")","v":""},{"$f":"IF(入力画面!F42=TRUE,1,\"\")","v":""},{"$f":"IF(入力画面!F43=TRUE,1,\"\")","v":""},{"$f":"IF(入力画面!F44=TRUE,1,\"\")","v":""},{"$f":"入力画面!F46","v":0},{"$f":"入力画面!I45","v":0},{"$f":"入力画面!B51","v":0},{"$f":"入力画面!B54","v":0},{"$f":"入力画面!B57","v":0},{"$f":"入力画面!B60","v":0},{"$f":"入力画面!B63","v":0},{"$f":"入力画面!C65","v":0}]

{"sheet":"保存画面","index":3,"n_rows":1,"n_cols":63,"rows_kept":1,"cut":false,"hidden":false,"merged":[]}
["施設名","都道府県","住所","電話番号","FAX番号","氏名","e-mail","初回登録日","最終更新日","年齢：年","年齢：月","性別","外来／入院","関与した薬剤師の担当（介入時）","関与した薬剤師の担当（介入時）：医療チーム：その他（内容）","関与した薬剤師の担当（介入時）：中央業務：その他（内容）","薬学的介入の内容：項目","薬学的介入の内容：項目：疾患名","薬学的介入の内容：項目：その他（内容）","薬学的介入の内容：契機：患者・家族の訴え、相談","薬学的介入の内容：契機：医師からの相談、情報提供","薬学的介入の内容：契機：看護師からの相談、情報提供","薬学的介入の内容：契機：他の薬剤師からの相談、情報提供","薬学的介入の内容：契機：フィジカルアセスメント","薬学的介入の内容：契機：検査値、バイタルサイン","薬学的介入の内容：契機：薬物血中濃度解析（TDM）","薬学的介入の内容：契機：処方箋、注射箋、薬歴","薬学的介入の内容：契機：該当しない","薬学的介入の内容：契機：その他","薬学的介入の内容：契機：その他（内容）","薬学的介入の内容：内容：薬剤増量","薬学的介入の内容：内容：薬剤減量","薬学的介入の内容：内容：薬剤追加","薬学的介入の内容：内容：薬剤中止","薬学的介入の内容：内容：薬剤変更","薬学的介入の内容：内容：用法変更","薬学的介入の内容：内容：投与法変更","薬学的介入の内容：内容：剤型変更","薬学的介入の内容：内容：該当しない","薬学的介入の内容：内容：その他","薬学的介入の内容：内容：その他（内容）","薬学的介入の内容：情報源：添付文書","薬学的介入の内容：情報源：インタビューフォーム","薬学的介入の内容：情報源：ガイドライン","薬学的介入の内容：情報源：文献","薬学的介入の内容：情報源：院内規定（レジメン、マニュアル）","薬学的介入の内容：情報源：該当しない","薬学的介入の内容：情報源：その他","薬学的介入の内容：情報源：その他（内容）","薬学的介入の内容：評価の指標：検査値","薬学的介入の内容：評価の指標：バイタルサイン","薬学的介入の内容：評価の指標：評価スケール（NCI-CTCAE、NRS、FRS、VAS等）","薬学的介入の内容：評価の指標：患者・家族からの訴え","薬学的介入の内容：評価の指標：該当しない","薬学的介入の内容：評価の指標：その他","薬学的介入の内容：評価の指標：その他（内容）","薬学的介入の内容：評価","内容の詳細：契機","内容の詳細：介入・提案内容","内容の詳細：介入の根拠","内容の詳細：転機、結果","内容の詳細：薬剤師関与による具体的効果（アウト力ム）","備考・追加など"]